fUSD/lending_fUSD_20251201
["ID","MTS","AMOUNT","RATE_DAILY","PERIOD"]
[395257452,1764573046313,-548.17129532,0.0001585,2]
[395257453,1764573046323,-160.09796136,0.0001585,2]
[395257454,1764573046333,-500.0,0.0001585,2]
[395257455,1764573046342,-500.0,0.0001585,2]
[395257456,1764573046352,-500.0,0.0001585,2]
[395257457,1764573046362,-160.0931227,0.0001585,2]
[395257458,1764573046371,-500.0,0.0001585,2]
[395257459,1764573046381,-500.0,0.0001585,2]
[395257460,1764573046391,-507.70227852,0.0001585,2]
[395257461,1764573046400,-500.0,0.0001585,2]
[395257462,1764573046410,-587.21395506,0.0001585,2]
[395257463,1764573046420,-500.0,0.0001585,2]
[395257464,1764573046430,-500.0,0.0001585,2]
[395257465,1764573046439,-150.0,0.00015854,2]
[395257466,1764573046448,-163.70980013,0.00015854,2]
[395257467,1764573046458,-150.0,0.00015854,2]
[395257468,1764573046468,-228.29835367,0.00015854,2]
[395257469,1764573046477,-150.0,0.00015854,2]
[395257470,1764573046486,-150.0,0.00015861,2]
[395257471,1764573046496,-150.0,0.00015862,2]
[395257472,1764573046506,-1575.36,0.00015866,2]
[395257473,1764573046515,-163.70980013,0.00015871,2]
[395257474,1764573046529,-228.29835367,0.00015871,2]
[395257475,1764573046539,-150.0,0.00015872,2]
[395257476,1764573046548,-484.48020322,0.00015873,2]
[395257477,1764573046558,-150.0,0.00015878,2]
[395257478,1764573046570,-150.0,0.00015883,2]
[395257479,1764573046580,-150.0,0.00015884,2]
[395257480,1764573046591,-4394.0,0.00015887,2]
[395257481,1764573046602,-417.0,0.00015887,2]
[395257482,1764573046612,-150.0,0.00015887,2]
[395257483,1764573046622,-163.70980013,0.00015888,2]
[395257484,1764573046633,-228.29835367,0.00015888,2]
[395257485,1764573046643,-150.0,0.0001589,2]
[395257486,1764573046653,-600.0,0.0001589,2]
[395257487,1764573046663,-644.6,0.00015899,2]
[395257488,1764573046673,-65755.8354646,0.000159,2]
[395257489,1764573046683,-150.0,0.000159,2]
[395257490,1764573046693,-163.70980013,0.00015905,2]
[395257491,1764573046704,-150.0,0.00015905,2]
[395257492,1764573046713,-228.29835367,0.00015905,2]
[395257493,1764573046723,-150.0,0.00015912,2]
[395257494,1764573046732,-150.0,0.00015913,2]
[395257495,1764573046741,-163.70980013,0.00015923,2]
[395257496,1764573046751,-228.29835367,0.00015923,2]
[395257497,1764573046761,-150.0,0.00015927,2]
[395257498,1764573046770,-150.0,0.00015928,2]
[395257499,1764573046779,-150.0,0.00015937,2]
[395257500,1764573046789,-163.70980013,0.0001594,2]
[395257501,1764573046799,-228.29835367,0.0001594,2]
[395257502,1764573046807,-150.0,0.00015943,2]
[395257503,1764573046817,-150.0,0.00015945,2]
[395257504,1764573046826,-150.0,0.00015949,2]
[395257505,1764573046836,-150.0,0.00015952,2]
[395257506,1764573046845,-150.0,0.00015956,2]
[395257507,1764573046855,-163.70980013,0.00015957,2]
[395257508,1764573046864,-228.29835367,0.00015957,2]
[395257509,1764573046873,-150.0,0.00015962,2]
[395257510,1764573046883,-150.0,0.00015967,2]
[395257511,1764573046892,-150.0,0.00015967,2]
[395257512,1764573046902,-150.0,0.00015972,2]
[395257513,1764573046911,-38850.81143401,0.00015972,2]
[395257514,1764573046920,-150.0,0.00015973,2]
[395257515,1764573046930,-163.70980013,0.00015974,2]
[395257516,1764573046939,-228.29835367,0.00015974,2]
[395257517,1764573046948,-1193.0,0.0001598,2]
[395257518,1764573046960,-12614.97504208,0.00015983,2]
[395257519,1764573046970,-150.0,0.00015984,2]
[395257520,1764573046979,-150.0,0.00015987,2]
[395257521,1764573046996,-163.70980013,0.00015991,2]
[395257522,1764573047008,-228.29835367,0.00015991,2]
[395257523,1764573047019,-150.0,0.00015994,2]
[395257524,1764573047029,-2162.66,0.00015999,2]
[395257525,1764573047039,-4512.22,0.00015999,2]
[395257526,1764573047049,-500.0,0.00015999,2]
[395257527,1764573047059,-150.0,0.00016,2]
[395257528,1764573047069,-2443.0,0.00016,2]
[395257529,1764573047079,-2000.0,0.00016,2]
[395257530,1764573047089,-150.0,0.00016003,2]
[395257531,1764573047100,-163.70980013,0.00016008,2]
[395257532,1764573047110,-228.29835367,0.00016008,2]
[395257533,1764573047120,-150.0,0.00016012,2]
[395257534,1764573047130,-150.0,0.00016012,2]
[395257535,1764573047140,-150.0,0.00016016,2]
[395257536,1764573047150,-150.0,0.00016016,2]
[395257537,1764573047159,-4394.0,0.00016024,2]
[395257538,1764573047169,-417.0,0.00016024,2]
[395257539,1764573047179,-163.70980013,0.00016025,2]
[395257540,1764573047188,-228.29835367,0.00016025,2]
[395257541,1764573047198,-150.0,0.00016026,2]
[395257542,1764573047208,-150.0,0.00016033,2]
[395257543,1764573047219,-150.0,0.00016037,2]
[395257544,1764573047229,-150.0,0.00016038,2]
[395257545,1764573047239,-150.0,0.0001604,2]
[395257546,1764573047248,-163.70980013,0.00016043,2]
[395257547,1764573047258,-228.29835367,0.00016043,2]
[395257548,1764573047268,-361.73,0.00016048,2]
[395257549,1764573047278,-150.0,0.00016055,2]
[395257550,1764573047287,-163.70980013,0.0001606,2]
[395257551,1764573047298,-150.0,0.0001606,2]
[395257552,1764573047308,-228.29835367,0.0001606,2]
[395257553,1764573047318,-150.0,0.00016062,2]
[395257554,1764573047327,-150.0,0.00016062,2]
[395257555,1764573047337,-150.0,0.00016067,2]
[395257556,1764573047347,-2162.66,0.00016076,2]
[395257557,1764573047358,-163.70980013,0.00016077,2]
[395257558,1764573047367,-228.29835367,0.00016077,2]
[395257559,1764573047378,-484.4802032,0.00016078,2]
[395257560,1764573047388,-150.0,0.0001608,2]
[395257561,1764573047397,-150.0,0.00016082,2]
[395257562,1764573047408,-150.0,0.00016087,2]
[395257563,1764573047417,-150.0,0.00016092,2]
[395257564,1764573047427,-163.70980013,0.00016094,2]
[395257565,1764573047437,-228.29835367,0.00016094,2]
[395257566,1764573047447,-150.0,0.00016095,2]
[395257567,1764573047456,-150.0,0.000161,2]
[395257568,1764573047466,-150.0,0.00016104,2]
[395257569,1764573047476,-150.0,0.0001611,2]
[395257570,1764573047486,-163.70980013,0.00016111,2]
[395257571,1764573047496,-228.29835367,0.00016111,2]
[395257572,1764573047505,-150.0,0.00016112,2]
[395257573,1764573047515,-9999.99,0.00016116,2]
[395257574,1764573047528,-150.0,0.00016122,2]
[395257575,1764573047539,-150.0,0.00016123,2]
[395257576,1764573047549,-150.0,0.00016126,2]
[395257577,1764573047559,-163.70980013,0.00016128,2]
[395257578,1764573047571,-228.29835367,0.00016128,2]
[395257579,1764573047580,-150.0,0.00016137,2]
[395257580,1764573047592,-150.0,0.00016137,2]
[395257581,1764573047602,-150.0,0.00016137,2]
[395257582,1764573047613,-150.0,0.00016137,2]
[395257583,1764573047623,-1575.36,0.0001614,2]
[395257584,1764573047633,-200.0,0.0001614,2]
[395257585,1764573047643,-500.0,0.0001614,2]
[395257586,1764573047652,-200.0,0.0001614,2]
[395257587,1764573047663,-163.70980013,0.00016146,2]
[395257588,1764573047673,-228.29835367,0.00016146,2]
[395257589,1764573047683,-151.0,0.00016146,2]
[395257590,1764573047692,-2162.66,0.00016148,2]
[395257591,1764573047702,-4512.22,0.00016148,2]
[395257592,1764573047712,-4512.22,0.00016148,2]
[395257593,1764573047721,-500.0,0.00016148,2]
[395257594,1764573047731,-500.0,0.00016148,2]
[395257595,1764573047742,-500.0,0.00016148,2]
[395257596,1764573047751,-500.0,0.00016148,2]
[395257597,1764573047760,-500.0,0.00016148,2]
[395257598,1764573047770,-604.47,0.00016148,2]
[395257599,1764573047780,-604.47,0.00016148,2]
[395257600,1764573047789,-500.0,0.00016148,2]
[395257601,1764573047923,-500.0,0.00016148,2]
[395257602,1764573047932,-500.0,0.00016148,2]
[395257603,1764573047941,-500.0,0.00016148,2]
[395257604,1764573047952,-500.0,0.00016148,2]
[395257605,1764573047962,-500.0,0.00016148,2]
[395257606,1764573047971,-500.0,0.00016148,2]
[395257607,1764573047979,-500.0,0.00016148,2]
[395257608,1764573047988,-500.0,0.00016148,2]
[395257609,1764573047997,-500.0,0.00016148,2]
[395257610,1764573048006,-500.0,0.00016148,2]
[395257611,1764573048016,-500.0,0.00016148,2]
[395257612,1764573048025,-500.0,0.00016148,2]
[395257613,1764573048034,-500.0,0.00016148,2]
[395257614,1764573048042,-628.88445166,0.00016148,2]
[395257615,1764573048052,-500.0,0.00016148,2]
[395257616,1764573048061,-500.0,0.00016148,2]
[395257617,1764573048070,-500.0,0.00016148,2]
[395257618,1764573048079,-434.2840336,0.00016148,2]
[395257619,1764573048088,-500.0,0.00016148,2]
[395257620,1764573048098,-500.0,0.00016148,2]
[395257621,1764573048107,-500.0,0.00016148,2]
[395257622,1764573048118,-500.0,0.00016148,2]
[395257623,1764573048128,-500.0,0.00016148,2]
[395257624,1764573048139,-644.6,0.00016148,2]
[395257625,1764573048148,-500.0,0.00016148,2]
[395257626,1764573048157,-500.0,0.00016148,2]
[395257627,1764573048167,-500.0,0.00016148,2]
[395257628,1764573048176,-500.0,0.00016148,2]
[395257629,1764573048185,-150.0,0.00016148,2]
[395257630,1764573048194,-300.0,0.00016149,2]
[395257631,1764573048203,-1328.07662834,0.00016149,2]
[395257632,1764573048213,-160.0,0.00016149,2]
[395257633,1764573048222,-8000.0,0.00016149,2]
[395257634,1764573048231,-8000.0,0.00016149,2]
[395257635,1764573048240,-8000.0,0.00016149,2]
[395257636,1764573048249,-8000.0,0.00016149,2]
[395257637,1764573048258,-8000.0,0.00016149,2]
[395257638,1764573048267,-8000.0,0.00016149,2]
[395257639,1764573048276,-250.0,0.00016149,2]
[395257640,1764573048285,-250.0,0.00016149,2]
[395257641,1764573048293,-8000.0,0.00016149,2]
[395257642,1764573048302,-1000.0,0.00016149,2]
[395257643,1764573048311,-250.0,0.00016149,2]
[395257644,1764573048320,-8000.0,0.00016149,2]
[395257645,1764573048329,-1000.0,0.00016149,2]
[395257646,1764573048338,-250.0,0.00016149,2]
[395257647,1764573048346,-8000.0,0.00016149,2]
[395257648,1764573048355,-1000.0,0.00016149,2]
[395257649,1764573048364,-187.78006525,0.00016149,2]
[395257650,1764573048373,-1000.0,0.00016149,2]
[395257651,1764573048383,-8000.0,0.00016149,2]
[395257652,1764573048392,-1000.0,0.00016149,2]
[395257653,1764573048401,-250.0,0.00016149,2]
[395257654,1764573048412,-1000.0,0.00016149,2]
[395257655,1764573048422,-8000.0,0.00016149,2]
[395257656,1764573048431,-151.0,0.00016149,2]
[395257657,1764573048440,-1000.0,0.00016149,2]
[395257658,1764573048451,-250.0,0.00016149,2]
[395257659,1764573048461,-1000.0,0.00016149,2]
[395257660,1764573048472,-514.84070869,0.00016149,2]
[395257661,1764573048482,-8000.0,0.00016149,2]
[395257662,1764573048491,-1000.0,0.00016149,2]
[395257663,1764573048501,-1000.0,0.00016149,2]
[395257664,1764573048510,-2148.05773878,0.00016149,2]
[395257665,1764573048519,-1000.0,0.00016149,2]
[395257666,1764573048531,-354.84418245,0.00016149,2]
[395257667,1764573048540,-1000.0,0.00016149,2]
[395257668,1764573048549,-1000.0,0.00016149,2]
[395257669,1764573048559,-1000.0,0.00016149,2]
[395257670,1764573048569,-1000.0,0.00016149,2]
[395257671,1764573048578,-762.94247186,0.00016149,2]
[395257672,1764573048587,-1000.0,0.00016149,2]
[395257673,1764573048597,-1000.0,0.00016149,2]
[395257674,1764573048607,-1000.0,0.00016149,2]
[395257675,1764573048618,-1000.0,0.00016149,2]
[395257676,1764573048627,-1000.0,0.00016149,2]
[395257677,1764573048636,-620.0,0.00016149,2]
[395257678,1764573048645,-1000.0,0.00016149,2]
[395257679,1764573048654,-1000.0,0.00016149,2]
[395257680,1764573048663,-187.78006525,0.00016149,2]
[395257681,1764573048672,-1000.0,0.00016149,2]
[395257682,1764573048681,-3300.0,0.00016149,2]
[395257683,1764573048690,-151.0,0.00016149,2]
[395257684,1764573048699,-1000.0,0.00016149,2]
[395257685,1764573048708,-1000.0,0.00016149,2]
[395257686,1764573048717,-1000.0,0.00016149,2]
[395257687,1764573048726,-1000.0,0.00016149,2]
[395257688,1764573048735,-1000.0,0.00016149,2]
[395257689,1764573048744,-151.0,0.00016149,2]
[395257690,1764573048754,-1000.0,0.00016149,2]
[395257691,1764573048763,-1000.0,0.00016149,2]
[395257692,1764573048771,-1000.0,0.00016149,2]
[395257693,1764573048780,-1000.0,0.00016149,2]
[395257694,1764573048789,-1000.0,0.00016149,2]
[395257695,1764573048798,-1000.0,0.00016149,2]
[395257696,1764573048807,-6485.44053371,0.00016149,2]
[395257697,1764573048817,-1000.0,0.00016149,2]
[395257698,1764573048826,-1000.0,0.00016149,2]
[395257699,1764573048835,-1000.0,0.00016149,2]
[395257700,1764573048844,-1000.0,0.00016149,2]
[395257701,1764573048853,-10000.0,0.00016149,2]
[395257702,1764573048863,-1000.0,0.00016149,2]
[395257703,1764573048873,-10000.0,0.00016149,2]
[395257704,1764573048882,-1000.0,0.00016149,2]
[395257705,1764573048893,-2500.0,0.00016149,2]
[395257706,1764573048902,-1000.0,0.00016149,2]
[395257707,1764573048911,-1000.0,0.00016149,2]
[395257708,1764573048920,-10000.0,0.00016149,2]
[395257709,1764573048930,-2500.0,0.00016149,2]
[395257710,1764573048939,-1000.0,0.00016149,2]
[395257711,1764573048947,-1000.0,0.00016149,2]
[395257712,1764573048956,-10000.0,0.00016149,2]
[395257713,1764573048965,-2500.0,0.00016149,2]
[395257714,1764573048974,-1000.0,0.00016149,2]
[395257715,1764573048983,-1000.0,0.00016149,2]
[395257716,1764573048992,-10000.0,0.00016149,2]
[395257717,1764573049001,-2500.0,0.00016149,2]
[395257718,1764573049010,-1000.0,0.00016149,2]
[395257719,1764573049020,-1000.0,0.00016149,2]
[395257720,1764573049028,-10000.0,0.00016149,2]
[395257721,1764573049037,-151.0,0.00016149,2]
[395257722,1764573049047,-2500.0,0.00016149,2]
[395257723,1764573049056,-1000.0,0.00016149,2]
[395257724,1764573049064,-10000.0,0.00016149,2]
[395257725,1764573049073,-10000.0,0.00016149,2]
[395257726,1764573049082,-2500.0,0.00016149,2]
[395257727,1764573049092,-10000.0,0.00016149,2]
[395257728,1764573049101,-2500.0,0.00016149,2]
[395257729,1764573049110,-10000.0,0.00016149,2]
[395257730,1764573049119,-2500.0,0.00016149,2]
[395257731,1764573049128,-10000.0,0.00016149,2]
[395257732,1764573049136,-2500.0,0.00016149,2]
[395257733,1764573049145,-10000.0,0.00016149,2]
[395257734,1764573049154,-2500.0,0.00016149,2]
[395257735,1764573049163,-10000.0,0.00016149,2]
[395257736,1764573049173,-500.0,0.00016149,2]
[395257737,1764573049182,-2500.0,0.00016149,2]
[395257738,1764573049191,-10000.0,0.00016149,2]
[395257739,1764573049199,-500.0,0.00016149,2]
[395257740,1764573049209,-2500.0,0.00016149,2]
[395257741,1764573049218,-500.0,0.00016149,2]
[395257742,1764573049228,-2500.0,0.00016149,2]
[395257743,1764573049237,-2500.0,0.00016149,2]
[395257744,1764573049247,-500.0,0.00016149,2]
[395257745,1764573049256,-500.0,0.00016149,2]
[395257746,1764573049267,-3000.0,0.00016149,2]
[395257747,1764573049276,-500.0,0.00016149,2]
[395257748,1764573049286,-3000.0,0.00016149,2]
[395257749,1764573049295,-500.0,0.00016149,2]
[395257750,1764573049304,-3000.0,0.00016149,2]
[395257751,1764573049314,-248.71531821,0.00016149,2]
[395257752,1764573049323,-500.0,0.00016149,2]
[395257753,1764573049332,-3000.0,0.00016149,2]
[395257754,1764573049342,-500.0,0.00016149,2]
[395257755,1764573049351,-3000.0,0.00016149,2]
[395257756,1764573049360,-500.0,0.00016149,2]
[395257757,1764573049370,-3000.0,0.00016149,2]
[395257758,1764573049379,-500.0,0.00016149,2]
[395257759,1764573049388,-3000.0,0.00016149,2]
[395257760,1764573049399,-250.0,0.00016149,2]
[395257761,1764573049408,-500.0,0.00016149,2]
[395257762,1764573049418,-3000.0,0.00016149,2]
[395257763,1764573049427,-254.91048614,0.00016149,2]
[395257764,1764573049436,-500.0,0.00016149,2]
[395257765,1764573049445,-3000.0,0.00016149,2]
[395257766,1764573049455,-500.0,0.00016149,2]
[395257767,1764573049465,-3000.0,0.00016149,2]
[395257768,1764573049474,-3000.0,0.00016149,2]
[395257769,1764573049483,-3000.0,0.00016149,2]
[395257770,1764573049492,-3000.0,0.00016149,2]
[395257771,1764573049501,-3000.0,0.00016149,2]
[395257772,1764573049510,-500.0,0.00016149,2]
[395257773,1764573049519,-500.0,0.00016149,2]
[395257774,1764573049532,-500.0,0.00016149,2]
[395257775,1764573049541,-500.0,0.00016149,2]
[395257776,1764573049549,-500.0,0.00016149,2]
[395257777,1764573049558,-500.0,0.00016149,2]
[395257778,1764573049569,-500.0,0.00016149,2]
[395257779,1764573049578,-500.0,0.00016149,2]
[395257780,1764573049588,-500.0,0.00016149,2]
[395257781,1764573049597,-500.0,0.00016149,2]
[395257782,1764573049607,-500.0,0.00016149,2]
[395257783,1764573049616,-500.0,0.00016149,2]
[395257784,1764573049626,-500.0,0.00016149,2]
[395257785,1764573049636,-500.0,0.00016149,2]
[395257786,1764573049645,-578.20924308,0.00016149,2]
[395257787,1764573049654,-226.43577512,0.0001615,2]
[395257788,1764573049664,-2092.314224,0.0001615,2]
[395257789,1764573049673,-220.07,0.00016151,2]
[395257790,1764573049682,-150.0,0.00016151,2]
[395257791,1764573049691,-150.0,0.00016152,2]
[395257792,1764573049700,-2224.15226749,0.0001616,2]
[395257793,1764573049709,-4411.0973467,0.00016161,2]
[395257794,1764573049718,-439.0,0.00016161,2]
[395257795,1764573049728,-150.0,0.00016162,2]
[395257796,1764573049738,-163.70980013,0.00016163,2]
[395257797,1764573049747,-228.29835367,0.00016163,2]
[395257798,1764573049755,-150.0,0.00016164,2]
[395257799,1764573049764,-151.0,0.00016165,2]
[395257800,1764573049774,-150.0,0.0001617,2]
[395257801,1764573049783,-150.0,0.00016174,2]
[395257802,1764573049792,-150.0,0.00016179,2]
[395257803,1764573049801,-163.70980013,0.0001618,2]
[395257804,1764573049810,-228.29835367,0.0001618,2]
[395257805,1764573049819,-150.0,0.00016182,2]
[395257806,1764573049829,-150.0,0.00016187,2]
[395257807,1764573049839,-150.0,0.00016192,2]
[395257808,1764573049848,-150.0,0.00016192,2]
[395257809,1764573049857,-150.0,0.00016192,2]
[395257810,1764573049866,-150.0,0.00016192,2]
[395257811,1764573049876,-150.0,0.00016192,2]
[395257812,1764573049885,-150.53,0.00016192,2]
[395257813,1764573049894,-150.0,0.00016192,2]
[395257814,1764573049904,-150.0,0.00016194,2]
[395257815,1764573049913,-163.70980013,0.00016197,2]
[395257816,1764573049922,-228.29835367,0.00016197,2]
[395257817,1764573049932,-3300.0,0.00016204,2]
[395257818,1764573049942,-150.0,0.00016207,2]
[395257819,1764573049951,-150.0,0.00016211,2]
[395257820,1764573049960,-150.0,0.00016212,2]
[395257821,1764573049969,-163.70980013,0.00016214,2]
[395257822,1764573049978,-150.0,0.00016214,2]
[395257823,1764573049986,-228.29835367,0.00016214,2]
[395257824,1764573049995,-150.0,0.00016219,2]
[395257825,1764573050004,-163.70980013,0.00016231,2]
[395257826,1764573050013,-228.29835367,0.00016231,2]
[395257827,1764573050022,-250.0,0.00016233,2]
[395257828,1764573050031,-150.0,0.00016234,2]
[395257829,1764573050041,-150.0,0.00016236,2]
[395257830,1764573050050,-150.0,0.00016237,2]
[395257831,1764573050059,-150.0,0.00016241,2]
[395257832,1764573050068,-644.6,0.00016246,2]
[395257833,1764573050077,-150.0,0.00016248,2]
[395257834,1764573050086,-163.70980013,0.00016249,2]
[395257835,1764573050095,-228.29835367,0.00016249,2]
[395257836,1764573050104,-736.0,0.00016254,2]
[395257837,1764573050113,-150.0,0.00016258,2]
[395257838,1764573050122,-150.0,0.00016258,2]
[395257839,1764573050131,-3300.0,0.00016259,2]
[395257840,1764573050140,-150.0,0.00016262,2]
[395257841,1764573050149,-150.0,0.00016262,2]
[395257842,1764573050158,-163.70980013,0.00016266,2]
[395257843,1764573050167,-228.29835367,0.00016266,2]
[395257844,1764573050176,-150.0,0.00016271,2]
[395257845,1764573050185,-150.0,0.00016274,2]
[395257846,1764573050194,-150.0,0.0001628,2]
[395257847,1764573050203,-163.70980013,0.00016283,2]
[395257848,1764573050212,-228.29835367,0.00016283,2]
[395257849,1764573050221,-484.4802032,0.00016284,2]
[395257850,1764573050231,-150.0,0.00016287,2]
[395257851,1764573050239,-1841.0142248,0.00016289,2]
[395257852,1764573050248,-150.0,0.0001629,2]
[395257853,1764573050257,-163.70980013,0.000163,2]
[395257854,1764573050267,-228.29835367,0.000163,2]
[395257855,1764573050276,-150.0,0.00016301,2]
[395257856,1764573050287,-150.0,0.00016302,2]
[395257857,1764573050295,-150.0,0.00016307,2]
[395257858,1764573050306,-150.0,0.00016307,2]
[395257859,1764573050315,-604.07312412,0.00016311,2]
[395257860,1764573050324,-150.0,0.00016312,2]
[395257861,1764573050333,-3300.0,0.00016314,2]
[395257862,1764573050342,-163.70980013,0.00016317,2]
[395257863,1764573050351,-228.29835367,0.00016317,2]
[395257864,1764573050360,-150.0,0.00016318,2]
[395257865,1764573050369,-150.0,0.00016322,2]
[395257866,1764573050379,-150.0,0.00016324,2]
[395257867,1764573050388,-150.0,0.00016329,2]
[395257868,1764573050397,-1577.0,0.0001633,2]
[395257869,1764573050406,-150.0,0.00016331,2]
[395257870,1764573050415,-163.70980013,0.00016334,2]
[395257871,1764573050424,-228.29835367,0.00016334,2]
[395257872,1764573050434,-150.0,0.00016337,2]
[395257873,1764573050443,-1632.21619087,0.00016344,2]
[395257874,1764573050451,-150.0,0.00016346,2]
[395257875,1764573050460,-150.0,0.00016347,2]
[395257876,1764573050469,-2162.66,0.00016351,2]
[395257877,1764573050478,-163.70980013,0.00016351,2]
[395257878,1764573050487,-228.29835367,0.00016351,2]
[395257879,1764573050496,-150.0,0.0001636,2]
[395257880,1764573050506,-150.0,0.00016362,2]
[395257881,1764573050515,-163.70980013,0.00016369,2]
[395257882,1764573050524,-150.0,0.00016369,2]
[395257883,1764573050539,-228.29835367,0.00016369,2]
[395257884,1764573050548,-3300.0,0.00016369,2]
[395257885,1764573050557,-150.0,0.00016374,2]
[395257886,1764573050567,-150.0,0.00016384,2]
[395257887,1764573050576,-834.72808316,0.00016385,2]
[395257888,1764573050586,-163.70980013,0.00016386,2]
[395257889,1764573050595,-228.29835367,0.00016386,2]
[395257890,1764573050607,-150.0,0.00016387,2]
[395257891,1764573050616,-150.0,0.0001639,2]
[395257892,1764573050625,-150.0,0.00016391,2]
[395257893,1764573050635,-150.0,0.00016395,2]
[395257894,1764573050644,-1016.50455865,0.00016398,2]
[395257895,1764573050654,-500.62734798,0.00016398,2]
[395257896,1764573050663,-388.21665271,0.00016398,2]
[395257897,1764573050673,-707.34062351,0.00016398,2]
[395257898,1764573050682,-500.70186377,0.00016398,2]
[395257899,1764573050691,-1000.0,0.00016398,2]
[395257900,1764573050701,-503.91137404,0.00016398,2]
[395257901,1764573050712,-1000.0,0.00016398,2]
[395257902,1764573050721,-500.45943647,0.00016398,2]
[395257903,1764573050730,-505.70856743,0.00016398,2]
[395257904,1764573050739,-1000.0,0.00016398,2]
[395257905,1764573050748,-1000.0,0.00016398,2]
[395257906,1764573050757,-713.79343577,0.00016398,2]
[395257907,1764573050765,-1003.03874905,0.00016398,2]
[395257908,1764573050774,-1000.0,0.00016398,2]
[395257909,1764573050783,-1000.0,0.00016398,2]
[395257910,1764573050792,-1000.0,0.00016398,2]
[395257911,1764573050800,-495.9241853,0.00016398,2]
[395257912,1764573050809,-1055.00053518,0.00016398,2]
[395257913,1764573050818,-938.4223103,0.00016398,2]
[395257914,1764573050827,-1000.0,0.00016398,2]
[395257915,1764573050836,-1000.0,0.00016398,2]
[395257916,1764573050845,-1000.0,0.00016398,2]
[395257917,1764573050854,-1000.0,0.00016398,2]
[395257918,1764573050863,-1000.0,0.00016398,2]
[395257919,1764573050873,-1000.0,0.00016398,2]
[395257920,1764573050883,-1000.0,0.00016398,2]
[395257921,1764573050892,-1000.0,0.00016398,2]
[395257922,1764573050901,-409.96658599,0.00016398,2]
[395257923,1764573050911,-1000.0,0.00016398,2]
[395257924,1764573050920,-1000.0,0.00016398,2]
[395257925,1764573050929,-654.41744648,0.00016398,2]
[395257926,1764573050938,-453.79493009,0.00016398,2]
[395257927,1764573050947,-160.17885855,0.00016398,2]
[395257928,1764573050957,-465.96204167,0.00016398,2]
[395257929,1764573050966,-150.0,0.00016402,2]
[395257930,1764573050975,-163.70980013,0.00016403,2]
[395257931,1764573050984,-228.29835367,0.00016403,2]
[395257932,1764573050993,-150.0,0.00016412,2]
[395257933,1764573051003,-150.0,0.00016413,2]
[395257934,1764573051012,-1575.36,0.00016414,2]
[395257935,1764573051022,-150.0,0.0001642,2]
[395257936,1764573051031,-163.70980013,0.0001642,2]
[395257937,1764573051040,-150.0,0.0001642,2]
[395257938,1764573051050,-228.29835367,0.0001642,2]
[395257939,1764573051060,-150.0,0.0001642,2]
[395257940,1764573051069,-3300.0,0.00016424,2]
[395257941,1764573051078,-150.0,0.00016429,2]
[395257942,1764573051088,-150.0,0.00016435,2]
[395257943,1764573051097,-38850.81143401,0.00016436,2]
[395257944,1764573051106,-150.0,0.00016437,2]
[395257945,1764573051116,-163.70980013,0.00016437,2]
[395257946,1764573051126,-228.29835367,0.00016437,2]
[395257947,1764573051135,-500.0,0.00016438,2]
[395257948,1764573051145,-322.63,0.00016438,2]
[395257949,1764573051154,-150.0,0.00016438,2]
[395257950,1764573051163,-800.0,0.00016438,2]
[395257951,1764573051172,-600.0,0.00016438,2]